fUST/lending_fUST_20250707
["ID","MTS","AMOUNT","RATE_DAILY","PERIOD"]
[370030746,1751850634484,-168.0,0.00022763,2]
[370030747,1751850634493,-677.36208871,0.00022797,7]
[370030748,1751850634503,-290.0,0.00022822,2]
[370030749,1751850634512,-500.0,0.00022827,2]
[370030750,1751850634521,-290.0,0.00022919,2]
[370030751,1751850634530,-677.36208871,0.00022969,8]
[370030752,1751850634539,-157.08101915,0.0002299,2]
[370030753,1751850634549,-62184.57919614,0.00023,8]
[370030762,1751850638432,-263.00186459,0.00021287,2]
[370030763,1751850638442,-500.0,0.00021287,2]
[370030764,1751850638452,-192.19873565,0.00021287,2]
[370030765,1751850638461,-211.62403246,0.00021287,2]
[370030766,1751850638471,-500.0,0.00021287,2]
[370030767,1751850638483,-500.0,0.00021287,2]
[370030768,1751850638492,-51481.21665889,0.00023,8]
[370030769,1751850638504,-8478.94719768,0.00023,8]
[370030770,1751850638515,-1101.379751,0.00023,8]
[370030771,1751850638527,-17205.484548,0.00023,8]
[370030772,1751850638538,-565.85883367,0.00023,8]
[370030773,1751850638549,-1021.7468185,0.00023,8]
[370030774,1751850638560,-1112.2015296,0.00023,8]
[370030775,1751850638571,-327.40824061,0.00023,8]
[370030776,1751850638583,-1148.35923775,0.00023,8]
[370030843,1751850640926,-649.81380549,0.00023,8]
[370030941,1751850646279,-1197.5610112,0.00023,8]
[370030947,1751850646338,-14577.27268091,0.00023,8]
[370030949,1751850646347,-2000.0,0.00023,2]
[370030951,1751850646357,-160.0,0.00023,3]
[370030952,1751850646366,-160.0,0.00023,3]
[370030953,1751850646376,-160.0,0.00023,3]
[370030955,1751850646386,-160.0,0.00023,3]
[370030957,1751850646397,-2000.0,0.00023,2]
[370030958,1751850646407,-2000.0,0.00023,2]
[370030959,1751850646416,-160.0,0.00023,2]
[370030960,1751850646425,-151.0,0.00023,6]
[370030961,1751850646435,-2200.0,0.00023,2]
[370030962,1751850646444,-1462.756819,0.00023,2]
[370030963,1751850646453,-897.61,0.00023012,2]
[370030964,1751850646462,-290.0,0.00023016,2]
[370030965,1751850646471,-2718.27338547,0.00023059,2]
[370030966,1751850646481,-300.0,0.00023083,2]
[370030967,1751850646491,-2937.55,0.00023091,4]
[370030968,1751850646500,-1000.62,0.000231,7]
[370030969,1751850646509,-290.0,0.00023114,2]
[370030970,1751850646518,-300.0,0.00023186,2]
[370030971,1751850646527,-2937.55,0.00023191,7]
[370030972,1751850646536,-2000.0,0.000232,2]
[370030973,1751850646546,-5917.72,0.000232,7]
[370030974,1751850646555,-1181.64067441,0.000232,2]
[370030975,1751850646564,-848.15551661,0.000232,7]
[370030976,1751850646573,-172.67,0.000232,31]
[370030977,1751850646582,-172.67,0.000232,31]
[370030978,1751850646591,-172.67,0.000232,31]
[370030979,1751850646601,-897.61,0.00023286,2]
[370030980,1751850646610,-151.0,0.00023288,6]
[370030981,1751850646619,-300.0,0.00023289,2]
[370030982,1751850646628,-503.69375874,0.00023289,10]
[370030983,1751850646637,-7154.03,0.0002329,10]
[370030984,1751850646647,-2937.55,0.00023291,2]
[370030985,1751850646656,-72029.55,0.000233,7]
[370030986,1751850646665,-848.15551661,0.000233,7]
[370030987,1751850646675,-151.0,0.00023315,6]
[370030988,1751850646684,-256.54903841,0.00023342,3]
[370030989,1751850646693,-218.7097284,0.00023343,6]
[370030990,1751850646703,-850.0,0.00023358,2]
[370030991,1751850646712,-2937.55,0.00023391,4]
[370030992,1751850646721,-300.0,0.00023391,2]
[370030993,1751850646731,-151.0,0.00023393,2]
[370030994,1751850646739,-500.0,0.00023393,2]
[370030995,1751850646749,-157.62247656,0.00023393,2]
[370030996,1751850646759,-168.0,0.00023393,2]
[370030997,1751850646768,-500.00681605,0.000234,2]
[370030998,1751850646777,-151.33309388,0.0002342,2]
[370030999,1751850646786,-500.0,0.0002342,2]
[370031000,1751850646796,-366.6379324,0.00023425,2]
[370031001,1751850646805,-209.07738789,0.00023448,2]
[370031002,1751850646815,-223.0315306,0.00023478,2]
[370031003,1751850646824,-2937.55,0.00023491,4]
[370031004,1751850646833,-300.0,0.00023494,2]
[370031005,1751850646844,-1000.0,0.000235,2]
[370031006,1751850646853,-2000.0,0.000235,2]
[370031007,1751850646862,-371.68437709,0.00023529,2]
[370031008,1751850646872,-897.61,0.0002356,2]
[370031009,1751850646885,-326.06,0.00023561,2]
[370031010,1751850646894,-326.06,0.00023561,2]
[370031011,1751850646904,-326.06,0.00023561,2]
[370031012,1751850646913,-326.06,0.00023561,2]
[370031013,1751850646924,-326.06,0.00023561,2]
[370031014,1751850646934,-326.06,0.00023561,2]
[370031015,1751850646944,-326.06,0.00023561,2]
[370031016,1751850646953,-326.06,0.00023561,2]
[370031017,1751850646964,-326.06,0.00023561,2]
[370031018,1751850646974,-326.06,0.00023561,2]
[370031019,1751850646984,-326.06,0.00023561,2]
[370031020,1751850646994,-326.06,0.00023561,2]
[370031021,1751850647004,-326.06,0.00023561,2]
[370031022,1751850647014,-326.06,0.00023561,2]
[370031023,1751850647023,-326.06,0.00023561,2]
[370031024,1751850647033,-326.06,0.00023561,2]
[370031025,1751850647043,-326.06,0.00023561,2]
[370031026,1751850647054,-587.0,0.00023561,2]
[370031027,1751850647063,-2937.55,0.00023591,6]
[370031028,1751850647073,-300.0,0.00023597,2]
[370031029,1751850647083,-1181.64067438,0.00023601,2]
[370031030,1751850647092,-2937.55,0.00023691,3]
[370031031,1751850647102,-470.4068617,0.00023699,2]
[370031032,1751850647111,-177.7370323,0.00023699,2]
[370031033,1751850647120,-159.4673789,0.00023699,2]
[370031034,1751850647130,-300.0,0.000237,2]
[370031035,1751850647140,-168.0,0.00023701,2]
[370031036,1751850647150,-19330.10207252,0.00023734,2]
[370031037,1751850647159,-990.1016259,0.00023753,3]
[370031038,1751850647168,-2937.55,0.00023791,2]
[370031039,1751850647178,-300.0,0.00023803,2]
[370031040,1751850647187,-326.06,0.00023834,2]
[370031041,1751850647197,-897.61,0.00023834,2]
[370031042,1751850647206,-168.0,0.00023886,2]
[370031043,1751850647216,-2937.55,0.00023891,2]
[370031044,1751850647225,-300.0,0.00023906,2]
[370031045,1751850647235,-950.0,0.00023906,2]
[370031046,1751850647244,-500.44110298,0.00023973,2]
[370031047,1751850647254,-500.82461005,0.00023973,2]
[370031048,1751850647264,-501.94181185,0.00023973,2]
[370031049,1751850647273,-500.72075072,0.00023973,2]
[370031050,1751850647284,-500.37666344,0.00023973,2]
[370031051,1751850647294,-500.0,0.00023973,2]
[370031052,1751850647303,-500.98945889,0.00023973,2]
[370031053,1751850647321,-500.0,0.00023973,2]
[370031054,1751850647333,-500.49022265,0.00023973,2]
[370031055,1751850647342,-500.0,0.00023973,2]
[370031056,1751850647351,-600.0,0.00023973,2]
[370031057,1751850647361,-160.19171553,0.00023973,2]
[370031058,1751850647370,-500.0,0.00023973,2]
[370031059,1751850647380,-264.31899327,0.00023973,2]
[370031060,1751850647391,-500.0,0.00023973,2]
[370031061,1751850647400,-153.42689666,0.00023973,2]
[370031062,1751850647410,-500.0,0.00023973,2]
[370031063,1751850647419,-500.39285804,0.00023973,2]
[370031064,1751850647429,-500.0,0.00023973,2]
[370031065,1751850647438,-642.67772767,0.00023973,2]
[370031066,1751850647448,-500.0,0.00023973,2]
[370031067,1751850647458,-500.62217247,0.00023973,2]
[370031068,1751850647467,-500.0,0.00023973,2]
[370031069,1751850647477,-500.0,0.00023973,2]
[370031070,1751850647486,-500.0,0.00023973,2]
[370031071,1751850647496,-500.0,0.00023973,2]
[370031072,1751850647505,-500.76977867,0.00023973,2]
[370031073,1751850647515,-500.7871241,0.00023973,2]
[370031074,1751850647524,-2937.55,0.00023991,5]
[370031075,1751850647534,-300.2,0.00024,7]
[370031076,1751850647544,-1689.8802323,0.00024,2]
[370031077,1751850647554,-52862.84599222,0.00024,2]
[370031078,1751850647564,-10127.52895265,0.00024,2]
[370031079,1751850647573,-452.86883252,0.00024,2]
[370031080,1751850647583,-178.53609396,0.00024,7]
[370031081,1751850647593,-1000.0,0.00024,24]
[370031082,1751850647602,-2000.0,0.00024,2]
[370031083,1751850647611,-31684.65973157,0.00024,7]
[370031084,1751850647621,-160.0,0.00024,7]
[370031085,1751850647631,-160.0,0.00024,10]
[370031086,1751850647641,-160.0,0.00024,7]
[370031087,1751850647650,-160.0,0.00024,10]
[370031088,1751850647660,-160.0,0.00024,7]
[370031089,1751850647669,-160.0,0.00024,10]
[370031090,1751850647679,-1000.62,0.00024,7]
[370031091,1751850647688,-115510.57,0.00024,2]
[370031092,1751850647697,-2000.0,0.00024,2]
[370031093,1751850647707,-2000.0,0.00024,2]
[370031094,1751850647716,-160.0,0.00024,7]
[370031095,1751850647725,-160.0,0.00024,7]
[370031096,1751850647736,-151.0,0.00024,7]
[370031097,1751850647745,-151.0,0.00024,7]
[370031098,1751850647755,-151.0,0.00024,7]
[370031099,1751850647764,-837.69501035,0.00024,7]
[370031100,1751850647773,-837.69501035,0.00024,10]
[370031101,1751850647783,-837.69501035,0.00024,7]
[370031102,1751850647792,-151.0,0.00024,7]
[370031103,1751850647802,-230.45878613,0.00024,7]
[370031104,1751850647812,-230.45878613,0.00024,10]
[370031105,1751850647822,-151.0,0.00024,7]
[370031106,1751850647832,-230.45878613,0.00024,7]
[370031107,1751850647842,-151.0,0.00024,7]
[370031108,1751850647852,-160.0,0.00024,7]
[370031109,1751850647862,-160.0,0.00024,10]
[370031110,1751850647871,-160.0,0.00024,7]
[370031111,1751850647883,-151.0,0.00024,7]
[370031112,1751850647894,-215.18120504,0.00024,7]
[370031113,1751850647904,-215.18120504,0.00024,10]
[370031114,1751850647914,-215.18120504,0.00024,7]
[370031115,1751850647924,-151.0,0.00024,7]
[370031116,1751850647934,-160.0,0.00024,7]
[370031117,1751850647943,-160.0,0.00024,10]
[370031118,1751850647953,-160.0,0.00024,7]
[370031119,1751850647963,-1181.64067438,0.00024003,2]
[370031120,1751850647973,-300.0,0.00024008,2]
[370031121,1751850647983,-168.0,0.00024009,2]
[370031122,1751850647993,-150.0,0.00024017,2]
[370031123,1751850648003,-2937.55,0.00024091,5]
[370031124,1751850648012,-5917.72,0.000241,7]
[370031125,1751850648023,-406.0,0.00024106,2]
[370031126,1751850648032,-326.06,0.00024108,2]
[370031127,1751850648041,-897.61,0.00024108,2]
[370031128,1751850648051,-300.0,0.00024111,2]
[370031129,1751850648061,-150.0,0.00024127,2]
[370031130,1751850648071,-150.0,0.00024127,2]
[370031131,1751850648081,-967.0,0.00024127,2]
[370031132,1751850648091,-2152.0,0.00024127,2]
[370031133,1751850648101,-646.0,0.00024127,2]
[370031134,1751850648111,-2937.55,0.00024191,7]
[370031135,1751850648121,-824.86165787,0.000242,2]
[370031136,1751850648130,-3090.98774612,0.000242,2]
[370031137,1751850648140,-2000.0,0.000242,2]
[370031138,1751850648150,-72029.55,0.000242,7]
[370031139,1751850648160,-151.0,0.000242,7]
[370031140,1751850648170,-151.0,0.000242,7]
[370031141,1751850648180,-151.0,0.000242,7]
[370031142,1751850648190,-151.0,0.000242,7]
[370031143,1751850648199,-300.0,0.00024214,2]
[370031144,1751850648209,-2937.55,0.00024291,3]
[370031145,1751850648218,-151.0,0.00024291,7]
[370031146,1751850648227,-217.929952,0.00024291,7]
[370031147,1751850648237,-160.0,0.000243,3]
[370031148,1751850648247,-160.0,0.000243,3]
[370031149,1751850648258,-160.0,0.000243,3]
[370031150,1751850648268,-300.0,0.00024317,2]
[370031151,1751850648277,-6008.29686399,0.00024317,2]
[370031152,1751850648375,-1569.62940117,0.00024317,2]
[370031153,1751850648516,-11752.17580735,0.00024317,2]
[370031154,1751850648526,-54.59852564,0.00024382,2]
[370031155,1751850648538,-271.46147436,0.00024382,2]
[370031156,1751850648548,-897.61,0.00024382,2]
[370031157,1751850648558,-1032.92080404,0.0002439,2]
[370031158,1751850648599,460.0,0.00019176,2]
[370031159,1751850648631,340.02,0.0001945,2]
[370031160,1751850692740,155.0,0.00016438,3]
[370031161,1751850700661,598.43,0.00019176,2]
[370031162,1751851451589,250.093702,0.00013699,2]
[370031173,1751851556270,-300.0,0.00019175,2]
[370031174,1751851556292,-500.0,0.00019176,2]
[370031175,1751851556320,-458.13522742,0.00019176,2]
[370031176,1751851556341,-460.0,0.00019176,2]
[370031177,1751851556363,-460.0,0.00019176,2]
[370031178,1751851556387,-181.27285946,0.00019176,2]
[370031179,1751851556408,-460.0,0.00019176,2]
[370031180,1751851556430,-460.0,0.00019176,2]
[370031181,1751851556451,-460.0,0.00019176,2]
[370031182,1751851556473,-460.0,0.00019176,2]
[370031183,1751851556494,-460.0,0.00019176,2]
[370031184,1751851556514,-216.77210225,0.00019176,2]
[370031185,1751851556534,-460.0,0.00019176,2]
[370031186,1751851556553,-460.0,0.00019176,2]
[370031187,1751851556580,-460.0,0.00019176,2]
[370031188,1751851556602,-460.0,0.00019176,2]
[370031189,1751851556623,-460.0,0.00019176,2]
[370031190,1751851556643,-507.65,0.00019176,2]
[370031191,1751851556664,-460.0,0.00019176,2]
[370031192,1751851556684,-464.82845396,0.00019176,2]
[370031193,1751851556705,-460.0,0.00019176,2]
[370031194,1751851556726,-460.0,0.00019176,2]
[370031195,1751851556746,-460.0,0.00019176,2]
[370031196,1751851556767,-460.0,0.00019176,2]
[370031197,1751851556788,-460.0,0.00019176,2]
[370031198,1751851556811,-460.0,0.00019176,2]
[370031199,1751851556833,-460.0,0.00019176,2]
[370031200,1751851556853,-460.0,0.00019176,2]
[370031201,1751851556878,-460.0,0.00019176,2]
[370031202,1751851556898,-460.0,0.00019176,2]
[370031203,1751851556918,-460.0,0.00019176,2]
[370031204,1751851556938,-460.0,0.00019176,2]
[370031205,1751851556960,-460.0,0.00019176,2]
[370031206,1751851556982,-460.0,0.00019176,2]
[370031207,1751851557004,-460.0,0.00019176,2]
[370031208,1751851557024,-460.0,0.00019176,2]
[370031209,1751851557046,-460.0,0.00019176,2]
[370031210,1751851557071,-500.0,0.00019176,2]
[370031211,1751851557093,-460.0,0.00019176,2]
[370031212,1751851557115,-460.0,0.00019176,2]
[370031213,1751851557138,-460.0,0.00019176,2]
[370031214,1751851557161,-460.0,0.00019176,2]
[370031215,1751851557183,-460.0,0.00019176,2]
[370031216,1751851557204,-460.0,0.00019176,2]
[370031217,1751851557229,-460.0,0.00019176,2]
[370031218,1751851557250,-460.0,0.00019176,2]
[370031219,1751851557271,-573.15,0.00019176,2]
[370031220,1751851557293,-460.0,0.00019176,2]
[370031221,1751851557316,-460.0,0.00019176,2]
[370031222,1751851557337,-460.0,0.00019176,2]
[370031223,1751851557358,-460.0,0.00019176,2]
[370031224,1751851557379,-460.0,0.00019176,2]
[370031225,1751851557399,-460.0,0.00019176,2]
[370031226,1751851557419,-460.0,0.00019176,2]
[370031227,1751851557441,-460.0,0.00019176,2]
[370031228,1751851557462,-460.0,0.00019176,2]
[370031229,1751851557487,-460.0,0.00019176,2]
[370031230,1751851557508,-460.0,0.00019176,2]
[370031231,1751851557528,-460.0,0.00019176,2]
[370031232,1751851557548,-460.0,0.00019176,2]
[370031233,1751851557572,-460.0,0.00019176,2]
[370031234,1751851557593,-302.81346171,0.00019176,2]
[370031235,1751851591371,-153.77585819,0.00019175,2]
[370031236,1751851646088,-36.41256368,0.00019175,2]
[370031237,1751851646110,-192.53098941,0.00019175,2]
[370031239,1751851715066,29773.04140525,0.00016209,2]
[370031241,1751851745099,-218.37675226,0.000189,2]
[370031242,1751851750096,-996.85665255,0.000189,2]
[370031243,1751851750117,-300.0,0.00019174,2]
[370031244,1751851750138,-267.46901059,0.00019175,2]
[370031245,1751851750159,-460.0,0.00019175,2]
[370031246,1751851750180,-460.0,0.00019175,2]
[370031247,1751851750200,-460.0,0.00019175,2]
[370031248,1751851750220,-462.36673577,0.00019175,2]
[370031249,1751851750242,-460.0,0.00019175,2]
[370031250,1751851750262,-257.80185456,0.00019175,2]
[370031251,1751851750281,-500.0,0.00019175,2]
[370031252,1751851750308,-500.0,0.00019175,2]
[370031253,1751851750333,-184.10130521,0.00019175,2]
[370031254,1751851750357,-500.0,0.00019175,2]
[370031255,1751851750380,-156.42082262,0.00019175,2]
[370031256,1751851750404,-500.0,0.00019175,2]
[370031257,1751851750428,-500.0,0.00019175,2]
[370031258,1751851750449,-500.0,0.00019175,2]
[370031259,1751851750473,-500.0,0.00019175,2]
[370031260,1751851750497,-500.0,0.00019175,2]
[370031261,1751851750518,-415.48685476,0.00019175,2]
[370031262,1751851750540,-460.0,0.00019175,2]
[370031263,1751851750562,-460.0,0.00019175,2]
[370031264,1751851750582,-11549.13322751,0.00019176,2]
[370031265,1751851750605,-157.18653829,0.00019176,2]
[370031266,1751851750628,-480.91100225,0.00019176,2]
[370031267,1751851750651,-460.0,0.00019176,2]
[370031268,1751851750673,-460.0,0.00019176,2]
[370031269,1751851750695,-460.0,0.00019176,2]
[370031270,1751851750719,-460.0,0.00019176,2]
[370031271,1751851750739,-460.0,0.00019176,2]
[370031272,1751851750763,-460.0,0.00019176,2]
[370031273,1751851750786,-460.0,0.00019176,2]
[370031274,1751851750806,-460.0,0.00019176,2]
[370031275,1751851750827,-460.0,0.00019176,2]
[370031276,1751851750850,-460.0,0.00019176,2]
[370031277,1751851750876,-460.0,0.00019176,2]
[370031278,1751851750898,-460.0,0.00019176,2]
[370031279,1751851750921,-460.0,0.00019176,2]
[370031280,1751851750945,-460.0,0.00019176,2]
[370031281,1751851750965,-460.0,0.00019176,2]
[370031282,1751851750989,-460.0,0.00019176,2]
[370031283,1751851751010,-460.0,0.00019176,2]
[370031284,1751851751032,-460.0,0.00019176,2]
[370031285,1751851751054,-460.0,0.00019176,2]
[370031286,1751851751074,-460.0,0.00019176,2]
[370031287,1751851751096,-460.0,0.00019176,2]
[370031288,1751851751117,-460.0,0.00019176,2]
[370031289,1751851751141,-460.0,0.00019176,2]
[370031290,1751851751163,-460.0,0.00019176,2]
[370031291,1751851751186,-500.0,0.00019176,2]
[370031292,1751851751206,-460.0,0.00019176,2]
[370031293,1751851751228,-460.0,0.00019176,2]
[370031294,1751851751254,-460.0,0.00019176,2]
[370031295,1751851751275,-460.0,0.00019176,2]
[370031296,1751851751300,-453.14453504,0.00019176,2]
[370031297,1751851751323,-460.0,0.00019176,2]
[370031298,1751851751343,-460.0,0.00019176,2]
[370031299,1751851751364,-460.0,0.00019176,2]
[370031300,1751851751383,-460.0,0.00019176,2]
[370031301,1751851751403,-460.0,0.00019176,2]
[370031302,1751851751423,-578.60596437,0.00019176,2]
[370031303,1751851751442,-240.0,0.00019176,2]
[370031304,1751851751463,-460.0,0.00019176,2]
[370031305,1751851751485,-460.0,0.00019176,2]
[370031306,1751851751505,-460.0,0.00019176,2]
[370031307,1751851751525,-460.0,0.00019176,2]
[370031308,1751851751545,-460.0,0.00019176,2]
[370031309,1751851751566,-460.0,0.00019176,2]
[370031310,1751851751587,-460.0,0.00019176,2]
[370031311,1751851751608,-460.0,0.00019176,2]
[370031312,1751851751628,-460.0,0.00019176,2]
[370031313,1751851751650,-460.0,0.00019176,2]
[370031314,1751851751669,-460.0,0.00019176,2]
[370031315,1751851751690,-460.0,0.00019176,2]
[370031316,1751851751710,-460.0,0.00019176,2]
[370031317,1751851751732,-460.0,0.00019176,2]
[370031318,1751851751753,-460.0,0.00019176,2]
[370031319,1751851751773,-460.0,0.00019176,2]
[370031320,1751851751794,-460.0,0.00019176,2]
[370031321,1751851751816,-460.0,0.00019176,2]
[370031322,1751851751838,-460.0,0.00019176,2]
[370031323,1751851751860,-460.0,0.00019176,2]
[370031324,1751851751883,-460.0,0.00019176,2]
[370031325,1751851751904,-460.0,0.00019176,2]
[370031326,1751851751929,-460.0,0.00019176,2]
[370031327,1751851751952,-460.0,0.00019176,2]
[370031328,1751851751976,-460.0,0.00019176,2]
[370031329,1751851751996,-460.0,0.00019176,2]
[370031330,1751851752016,-460.0,0.00019176,2]
[370031331,1751851752036,-460.0,0.00019176,2]
[370031332,1751851752057,-460.0,0.00019176,2]
[370031333,1751851752076,-460.0,0.00019176,2]
[370031334,1751851752096,-460.0,0.00019176,2]
[370031335,1751851752115,-460.0,0.00019176,2]
[370031336,1751851752135,-460.0,0.00019176,2]
[370031337,1751851752156,-460.0,0.00019176,2]
[370031338,1751851752176,-460.0,0.00019176,2]
[370031339,1751851752196,-460.0,0.00019176,2]
[370031340,1751851752216,-460.0,0.00019176,2]
[370031341,1751851752236,-460.0,0.00019176,2]
[370031342,1751851752259,-497.39980617,0.00019176,2]
[370031343,1751851752280,-460.0,0.00019176,2]
[370031344,1751851752300,-460.0,0.00019176,2]
[370031345,1751851752321,-460.0,0.00019449,2]
[370031346,1751851752342,-461.18503718,0.00019449,2]
[370031347,1751851752366,-460.0,0.00019449,2]
[370031348,1751851752387,-460.0,0.0001945,2]
[370031349,1751851752410,-460.0,0.0001945,2]
[370031350,1751851752431,-593.26652504,0.0001945,2]
[370031351,1751851752451,-242.88674062,0.0001945,2]
[370031352,1751851752474,-460.0,0.0001945,2]
[370031353,1751851752494,-460.0,0.0001945,2]
[370031354,1751851752516,-460.0,0.0001945,2]
[370031355,1751851752535,-460.0,0.0001945,2]
[370031356,1751851752556,-460.0,0.0001945,2]
[370031357,1751851752576,-460.0,0.0001945,2]
[370031358,1751851752596,-460.0,0.0001945,2]
[370031359,1751851752615,-460.0,0.0001945,2]
[370031360,1751851752635,-460.0,0.0001945,2]
[370031361,1751851752656,-460.0,0.0001945,2]
[370031362,1751851752677,-460.0,0.0001945,2]
[370031363,1751851752697,-460.0,0.0001945,2]
[370031364,1751851752719,-460.0,0.0001945,2]
[370031365,1751851752741,-460.0,0.0001945,2]
[370031366,1751851752761,-460.0,0.0001945,2]
[370031367,1751851752782,-460.0,0.0001945,2]
[370031368,1751851752802,-460.0,0.0001945,2]
[370031369,1751851752822,-460.0,0.0001945,2]
[370031370,1751851752842,-349.15093897,0.0001945,2]
[370031371,1751851765213,-460.0,0.00019175,2]
[370031372,1751851765236,-460.0,0.00019175,2]
[370031373,1751851765258,-460.0,0.00019176,2]
[370031374,1751851765280,-460.0,0.00019176,2]
[370031375,1751851765316,-460.0,0.00019176,2]
[370031376,1751851765343,-460.0,0.00019176,2]
[370031377,1751851765368,-460.0,0.00019176,2]
[370031378,1751851765391,-460.0,0.00019176,2]
[370031379,1751851765414,-460.0,0.00019176,2]
[370031380,1751851765435,-460.0,0.00019176,2]
[370031381,1751851765458,-460.0,0.00019176,2]
[370031382,1751851765479,-468.04,0.00019449,2]
[370031383,1751851765501,-110.84906103,0.0001945,2]
[370031384,1751851765524,-460.0,0.0001945,2]
[370031385,1751851765545,-460.0,0.0001945,2]
[370031386,1751851765567,-460.0,0.0001945,2]
[370031387,1751851765588,-460.0,0.0001945,2]
[370031388,1751851765609,-460.0,0.0001945,2]
[370031389,1751851765631,-460.0,0.0001945,2]
[370031390,1751851765653,-460.0,0.0001945,2]
[370031391,1751851765675,-460.0,0.0001945,2]
[370031392,1751851765698,-460.0,0.0001945,2]
[370031393,1751851765719,-601.92313938,0.0001945,2]
[370031394,1751851765740,-460.0,0.0001945,2]
[370031395,1751851765761,-460.0,0.0001945,2]
[370031396,1751851765783,-460.0,0.0001945,2]
[370031397,1751851765804,-460.0,0.0001945,2]
[370031398,1751851765824,-460.0,0.0001945,2]
[370031399,1751851765845,-460.0,0.0001945,2]
[370031400,1751851765865,-460.0,0.0001945,2]
[370031401,1751851765886,-460.0,0.0001945,2]
[370031402,1751851765908,-460.0,0.0001945,2]
[370031403,1751851765930,-460.0,0.0001945,2]
[370031404,1751851765952,-460.0,0.0001945,2]
[370031405,1751851765973,-460.0,0.0001945,2]
[370031406,1751851765995,-460.0,0.0001945,2]
[370031407,1751851766026,-460.0,0.0001945,2]
[370031408,1751851766054,-460.0,0.0001945,2]
[370031409,1751851766078,-460.0,0.0001945,2]
[370031410,1751851766099,-460.0,0.0001945,2]
[370031411,1751851766121,-460.0,0.0001945,2]
[370031412,1751851766143,-460.0,0.0001945,2]
[370031413,1751851766164,-460.0,0.0001945,2]
[370031414,1751851766186,-460.0,0.0001945,2]
[370031415,1751851766207,-35.21482591,0.0001945,2]
[370031416,1751851768229,-460.0,0.00019176,2]
[370031417,1751851768252,-397.94177096,0.00019176,2]
[370031418,1751851768273,-460.0,0.00019449,2]
[370031419,1751851768295,-424.78517409,0.0001945,2]
[370031420,1751851768317,-460.0,0.0001945,2]
[370031421,1751851768339,-460.0,0.0001945,2]
[370031422,1751851768360,-460.0,0.0001945,2]
[370031423,1751851768383,-460.0,0.0001945,2]
[370031424,1751851768406,-460.0,0.0001945,2]
[370031425,1751851768428,-239.88,0.0001945,2]
[370031426,1751851768450,-460.0,0.0001945,2]
[370031427,1751851768470,-460.0,0.0001945,2]
[370031428,1751851768492,-460.0,0.0001945,2]
[370031429,1751851768511,-183.048581,0.0001952,2]
[370031430,1751851768535,-460.0,0.00019723,2]
[370031431,1751851768574,-460.0,0.00019723,2]
[370031432,1751851768597,-460.0,0.00019724,2]
[370031433,1751851768619,-460.0,0.00019724,2]
[370031434,1751851768639,-460.0,0.00019724,2]
[370031435,1751851768660,-460.0,0.00019724,2]
[370031436,1751851768682,-460.0,0.00019724,2]
[370031437,1751851768703,-460.0,0.00019724,2]